bitfinex/quotes_ETHUSD_20240926
["timestamp","ask_amount","ask_price","bid_price","bid_amount"]
[1727354218775,3.0,2636.7,2636.2,0.6635]
[1727354218973,6.79269,2636.7,2636.2,0.6635]
[1727354219173,3.79287,2636.6,2636.2,0.6635]
[1727354219864,3.0,2636.7,2636.2,0.6635]
[1727354220200,3.8304226,2637.0,2636.3,7.58624]
[1727354220444,0.0381726,2637.0,2636.5,0.6635]
[1727354220929,3.8303826,2637.0,2636.5,0.6635]
[1727354221238,3.79259,2636.8,2636.5,0.6635]
[1727354221534,4.17566626,2636.8,2636.5,0.6635]
[1727354221700,3.79264,2636.7,2636.1,0.6635]
[1727354222439,3.79264,2636.7,2636.1,4.45695]
[1727354222730,3.79276,2636.6,2636.1,0.6635]
[1727354223396,0.41757163,2636.7,2636.1,0.6635]
[1727354223592,3.79327,2636.3,2635.8,0.6635]
[1727354223791,3.79333,2636.2,2635.8,0.6635]
[1727354225139,3.79319,2636.3,2635.8,0.6635]
[1727354225729,3.793,2636.5,2635.8,4.45739]
[1727354225895,3.793,2636.5,2635.8,0.6635]
[1727354225896,3.79306,2636.4,2635.8,0.6635]
[1727354226448,7.58622,2636.4,2635.8,0.6635]
[1727354226620,3.79306,2636.4,2635.8,4.45733]
[1727354226932,0.41757163,2636.7,2635.8,4.45733]
[1727354226933,3.0,2636.7,2636.0,0.6635]
[1727354227117,3.0,2636.7,2636.0,4.45702]
[1727354227318,3.0,2636.8,2636.4,0.6635]
[1727354227493,6.79249,2636.8,2636.4,0.6635]
[1727354227893,3.0,2636.9,2636.4,0.6635]
[1727354228197,6.7924,2636.9,2636.4,0.6635]
[1727354228736,6.79233,2636.9,2636.4,0.6635]
[1727354229508,3.79247,2636.8,2636.4,0.6635]
[1727354230634,6.79233,2636.9,2636.4,0.6635]
[1727354230934,10.58476,2636.9,2636.4,0.6635]
[1727354231238,3.79262,2636.7,2636.4,0.6635]
[1727354232743,3.79292,2636.5,2636.0,0.6635]
[1727354232946,7.58595,2636.5,2636.0,0.6635]
[1727354233242,3.79292,2636.5,2636.0,0.6635]
[1727354233410,3.79315,2636.4,2636.0,0.6635]
[1727354234299,3.79348,2636.1,2636.0,0.6635]
[1727354234535,3.79335,2636.2,2635.7,0.6635]
[1727354234708,3.79335,2636.2,2635.7,1.109263]
[1727354234921,3.79315,2636.4,2635.8,3.79379]
[1727354235176,3.79315,2636.4,2635.7,0.445763]
[1727354235177,0.754,2636.6,2635.9,0.6635]
[1727354235440,3.79305,2636.4,2635.9,0.6635]
[1727354235739,7.58619,2636.4,2635.9,0.6635]
[1727354235911,3.79305,2636.4,2635.9,0.6635]
[1727354236552,7.58618,2636.4,2635.9,0.6635]
[1727354236904,3.79305,2636.4,2635.9,0.6635]
[1727354237841,3.79324,2636.3,2635.9,0.6635]
[1727354238006,3.0,2636.5,2635.9,0.6635]
[1727354238206,7.547707,2636.5,2635.9,0.6635]
[1727354238947,7.547707,2636.5,2636.0,3.79359]
[1727354238948,3.754687,2636.5,2636.0,3.79359]
[1727354239097,1.18386779,2636.9,2636.0,3.79359]
[1727354239098,4.56458,2636.9,2636.2,0.6635]
[1727354239302,0.0381726,2637.0,2636.3,3.79319]
[1727354239640,3.79235,2636.9,2636.3,3.79319]
[1727354239952,3.8304926,2637.0,2636.3,3.79311]
[1727354240240,3.8304726,2637.0,2636.3,4.24642694]
[1727354240446,3.0,2636.9,2636.3,4.24642694]
[1727354240616,3.79248,2636.8,2636.3,0.45324694]
[1727354240802,7.58505,2636.8,2636.3,0.45324694]
[1727354241007,7.58505,2636.8,2636.2,4.45683]
[1727354241204,3.79291,2636.5,2636.2,0.6635]
[1727354241909,3.7926,2636.8,2636.2,0.6635]
[1727354242135,3.79263,2636.7,2636.2,1.109188]
[1727354242452,3.79277,2636.6,2636.2,1.109188]
[1727354243222,3.79263,2636.7,2636.2,1.109188]
[1727354243542,3.79263,2636.7,2636.2,0.6635]
[1727354243739,7.58532,2636.7,2636.2,0.6635]
[1727354244047,3.79276,2636.6,2636.2,0.6635]
[1727354246961,3.79322,2636.3,2635.9,0.6635]
[1727354247150,0.799,2636.5,2635.5,0.6635]
[1727354247151,3.79365,2636.0,2635.5,0.6635]
[1727354247659,7.5868,2636.2,2635.5,4.45776]
[1727354247958,7.5868,2636.2,2635.6,0.825216]
[1727354247959,7.58678,2636.2,2635.6,0.825216]
[1727354248154,3.79335,2636.2,2635.6,4.619416]
[1727354248316,3.79349,2636.1,2635.6,4.619416]
[1727354248655,3.79363,2636.0,2635.6,0.825216]
[1727354248827,3.79363,2636.0,2635.5,4.45784]
[1727354249026,3.79335,2636.2,2635.5,4.45784]
[1727354249233,3.79291,2636.5,2636.0,0.6635]
[1727354249415,6.79276,2636.6,2636.0,1.109219]
[1727354249756,4.59352,2636.7,2636.1,3.79341]
[1727354249757,3.79262,2636.7,2636.1,3.79341]
[1727354250060,3.8303626,2637.0,2636.4,3.79294]
[1727354250459,3.8303626,2637.0,2636.5,0.6635]
[1727354251365,3.79273,2636.7,2636.5,0.6635]
[1727354251720,3.79273,2636.7,2636.1,0.6635]
[1727354251965,3.79273,2636.7,2636.1,1.109203]
[1727354252129,3.79278,2636.6,2636.1,1.109203]
[1727354252753,3.7926,2636.8,2636.1,4.902613]
[1727354252932,3.7927,2636.7,2636.1,4.902613]
[1727354253337,3.7926,2636.8,2636.1,4.902613]
[1727354253338,3.79277,2636.6,2636.1,4.902613]
[1727354253649,3.793,2636.5,2636.1,0.6635]
[1727354253870,3.79277,2636.6,2636.1,0.6635]
[1727354254432,3.0,2636.7,2636.2,3.79333]
[1727354254667,3.0,2636.7,2636.3,3.79315]
[1727354254972,6.79234,2636.9,2636.4,0.6635]
[1727354255174,3.79253,2636.8,2636.4,0.6635]
[1727354255375,6.79234,2636.9,2636.4,0.6635]
[1727354255668,6.79234,2636.9,2636.4,1.48848]
[1727354256832,6.8304326,2637.0,2636.4,5.28141]
[1727354257033,6.8304326,2637.0,2636.4,5.2815]
[1727354257868,3.79266,2636.7,2636.4,0.6635]
[1727354258169,3.79276,2636.6,2636.4,0.6635]
[1727354258344,3.79276,2636.6,2636.2,0.6635]
[1727354258547,3.79276,2636.6,2636.2,1.042836]
[1727354259073,3.7931,2636.4,2636.2,0.6635]
[1727354259442,3.79292,2636.5,2636.2,0.6635]
[1727354259775,3.79315,2636.4,2636.2,0.6635]
[1727354260381,3.79319,2636.3,2636.2,0.6635]
[1727354260535,3.79306,2636.4,2636.0,0.6635]
[1727354260836,3.79306,2636.4,2636.0,1.14725]
[1727354261038,3.79286,2636.6,2636.0,1.14725]
[1727354261282,3.7929,2636.5,2636.0,4.94087]
[1727354262471,3.7929,2636.5,2636.0,1.14725]
[1727354263681,3.7929,2636.5,2636.0,4.94085]
[1727354264215,3.79298,2636.5,2636.0,1.14725]
[1727354264675,3.79306,2636.4,2636.0,1.14725]
[1727354264983,3.79306,2636.4,2636.0,0.6635]
[1727354265985,3.79293,2636.5,2636.0,4.45711]
[1727354267147,3.79278,2636.6,2636.1,3.79342]
[1727354267860,3.7929,2636.5,2636.1,3.79342]
[1727354268050,3.7929,2636.5,2636.0,4.45711]
[1727354269146,3.7929,2636.5,2636.0,0.6635]
[1727354269147,3.79312,2636.4,2636.0,0.6635]
[1727354269387,4.17219,2636.5,2636.0,4.45711]
[1727354270223,3.7934,2636.2,2635.6,4.45759]
[1727354270431,3.7934,2636.2,2635.8,3.79391]
[1727354271091,0.7585,2636.4,2635.9,3.79368]
[1727354271420,3.79285,2636.6,2636.2,0.6635]
[1727354271921,3.79284,2636.6,2636.2,0.6635]
[1727354272107,6.79269,2636.7,2636.2,4.53260248]
[1727354272312,3.0,2636.7,2636.3,3.79314]
[1727354272515,4.6627826,2637.0,2636.4,3.79303]
[1727354272516,4.6627626,2637.0,2636.4,3.79303]
[1727354272830,3.0,2636.9,2636.6,0.6635]
[1727354273305,6.79233,2636.9,2636.6,0.6635]
[1727354274724,3.79253,2636.8,2636.6,0.6635]
[1727354275381,6.8304626,2637.0,2636.6,0.6635]
[1727354275621,3.79234,2636.9,2636.6,0.6635]
[1727354276722,7.5848,2636.9,2636.6,0.6635]
[1727354276930,3.79256,2636.8,2636.6,0.6635]
[1727354277293,3.79339,2636.2,2635.9,0.6635]
[1727354277686,3.7935,2636.1,2635.9,0.6635]
[1727354278320,3.79362,2636.0,2635.5,4.45782]
[1727354278884,7.58735,2636.0,2635.5,4.45782]
[1727354279122,7.58735,2636.0,2635.6,0.52758066]
[1727354279328,3.79386,2635.9,2635.6,0.52758066]
[1727354279481,3.79386,2635.9,2635.5,0.6635]
[1727354279682,3.79406,2635.7,2635.3,0.6635]
[1727354279885,3.79363,2636.0,2635.3,0.6635]
[1727354279886,3.79442,2635.5,2635.3,0.6635]
[1727354280130,3.79442,2635.5,2635.0,0.6635]
[1727354280131,7.58888,2635.5,2635.0,0.6635]
[1727354280292,3.79449,2635.4,2635.0,0.6635]
[1727354280909,3.79472,2635.3,2635.0,0.6635]
[1727354281305,3.79443,2635.5,2635.0,1.109375]
[1727354281620,3.79468,2635.3,2635.0,1.109375]
[1727354281824,3.7943,2635.6,2635.0,4.45853]
[1727354282049,3.7943,2635.6,2635.1,3.7949]
[1727354282250,3.7943,2635.6,2635.2,0.44584]
[1727354282546,7.60876,2636.0,2635.2,0.44584]
[1727354282547,3.7941,2635.7,2635.2,4.24054]
[1727354282732,3.79379,2635.9,2635.3,0.6635]
[1727354282916,0.8151,2636.0,2635.3,0.6635]
[1727354283244,3.79412,2635.7,2635.3,0.6635]
[1727354283842,3.79429,2635.6,2635.3,0.6635]
[1727354284040,3.79429,2635.6,2634.9,0.3803]
[1727354284041,3.79449,2635.4,2635.1,0.6635]
[1727354285546,3.79472,2635.3,2635.1,0.6635]
[1727354285840,3.79477,2635.2,2634.9,0.6635]
[1727354286051,3.79466,2635.3,2634.9,1.109383]
[1727354287205,3.79466,2635.3,2634.8,3.79533]
[1727354287438,3.79466,2635.3,2634.7,4.45899]
[1727354287749,0.7763,2635.5,2634.7,0.6635]
[1727354287750,3.79522,2634.9,2634.7,0.6635]
[1727354287904,3.79535,2634.8,2634.7,0.6635]
[1727354288450,3.79535,2634.8,2634.3,4.45948]
[1727354288751,3.79535,2634.8,2634.3,4.839091]
[1727354289532,4.61801,2635.0,2634.0,0.6635]
[1727354289533,3.79564,2634.6,2634.0,0.6635]
[1727354289733,3.79564,2634.6,2634.0,4.46]
[1727354289956,3.8229,2635.0,2634.0,1.49298526]
[1727354290246,3.8229,2635.0,2633.8,0.7016726]
[1727354290247,3.79623,2634.2,2633.8,0.7016726]
[1727354290447,4.855447,2634.2,2633.8,0.7016726]
[1727354290604,3.79623,2634.2,2633.8,0.7016726]
[1727354291604,3.79638,2634.1,2633.8,0.7016726]
[1727354291808,3.79619,2634.3,2633.8,0.7016726]
[1727354292250,3.79621,2634.2,2633.8,0.7016726]
[1727354292550,7.59238,2634.3,2633.8,0.7016726]
[1727354292749,3.79627,2634.2,2633.8,0.7016726]
[1727354293244,3.79627,2634.2,2633.8,0.0381726]
[1727354293245,4.175897,2634.2,2633.8,0.0381726]
[1727354293406,3.79658,2634.0,2633.8,0.0381726]
[1727354293610,3.7965,2634.0,2633.8,0.0381726]
[1727354294005,4.567,2634.0,2633.8,0.0381726]
[1727354295969,6.79665,2633.9,2633.8,0.0381726]
[1727354298747,3.0,2633.9,2633.8,0.0381726]
[1727354299596,3.79629,2634.2,2633.8,0.0381726]
[1727354299895,3.0,2634.1,2633.8,0.0381726]
[1727354300497,3.79629,2634.2,2633.8,0.0381726]
[1727354301154,7.59263,2634.2,2633.8,0.0381726]
[1727354301350,6.79629,2634.2,2633.8,0.0381726]
[1727354301554,3.0,2634.2,2633.8,0.0381726]
[1727354301793,6.79622,2634.2,2633.8,0.0381726]
[1727354301949,6.79623,2634.2,2633.8,0.0381726]
[1727354302694,10.59254,2634.2,2633.8,0.0381726]
[1727354302873,3.79636,2634.1,2633.8,0.0381726]
[1727354303603,6.79623,2634.2,2633.8,0.0381726]
[1727354304580,3.79638,2634.1,2633.8,0.0381726]
[1727354305481,6.79623,2634.2,2633.8,0.0381726]
[1727354305656,3.7964,2634.1,2633.8,0.0381726]
[1727354306054,3.79665,2633.9,2633.8,0.0381726]
[1727354306998,5.360454,2633.9,2633.8,0.0381726]
[1727354307212,4.60115,2633.9,2633.8,0.0381726]
[1727354308404,7.60115,2633.9,2633.8,0.0381726]
[1727354308814,6.79665,2633.9,2633.8,0.0381726]
[1727354311389,6.79631,2634.2,2633.8,0.0381726]
[1727354311584,6.79631,2634.2,2633.8,0.7016726]
[1727354311585,3.79637,2634.1,2633.8,0.7016726]
[1727354312702,3.79631,2634.2,2633.8,0.7016726]
[1727354313816,4.59479,2634.3,2633.8,4.4984026]
[1727354313987,6.79582,2634.5,2633.8,4.94823286]
[1727354313988,3.0,2634.5,2633.8,4.94823286]
[1727354314189,3.79594,2634.4,2633.9,3.79659]
[1727354314424,7.59196,2634.4,2633.9,3.79659]
[1727354314741,3.0,2634.5,2633.8,1.15151286]
[1727354314742,3.79607,2634.3,2633.8,4.94829286]
[1727354315537,3.79595,2634.4,2633.8,4.94821286]
[1727354315739,3.79607,2634.3,2633.8,4.94821286]
[1727354316397,3.79628,2634.2,2633.8,0.7016726]
[1727354316744,3.79637,2634.1,2633.8,0.0381726]
[1727354316954,3.7982,2634.5,2633.8,0.0381726]
[1727354316955,3.79623,2634.2,2633.8,0.0381726]
[1727354317093,3.7966,2634.0,2633.8,0.0381726]
[1727354317437,3.79665,2633.9,2633.8,0.0381726]
[1727354317640,4.60495,2633.9,2633.8,0.0381726]
[1727354317798,5.445105,2633.9,2633.8,0.0381726]
[1727354318932,1.648455,2633.9,2633.8,0.0381726]
[1727354319239,3.0,2634.1,2633.8,0.0381726]
[1727354319539,3.79657,2634.0,2633.8,0.0381726]
[1727354322827,3.79665,2633.9,2633.8,0.0381726]
[1727354323243,3.0,2633.9,2633.8,0.0381726]
[1727354323397,7.55355,2633.9,2633.8,0.0381726]
[1727354323742,8.688562,2633.9,2633.8,0.0381726]
[1727354327223,8.688562,2633.9,2633.8,0.02067165]
[1727354328051,1.135012,2633.9,2633.8,0.02067165]
[1727354328325,3.0,2633.9,2633.8,0.02067165]
[1727354330571,3.79637,2634.1,2633.8,0.02067165]
[1727354331222,3.79652,2634.0,2633.8,0.02067165]
[1727354331924,3.79665,2633.9,2633.8,0.02067165]
[1727354333165,3.79651,2634.0,2633.8,0.02067165]
[1727354335195,3.0,2634.3,2633.8,0.02067165]
[1727354335497,6.79625,2634.2,2633.8,0.02067165]
[1727354335673,3.79644,2634.1,2633.8,0.02067165]
[1727354335865,3.79654,2634.0,2633.8,0.02067165]
[1727354336082,3.79644,2634.1,2633.8,0.02067165]
[1727354337284,6.79622,2634.2,2633.8,0.02067165]
[1727354337481,3.79643,2634.1,2633.8,0.02067165]
[1727354338491,6.79622,2634.2,2633.8,0.02067165]
[1727354338788,3.79644,2634.1,2633.8,0.02067165]
[1727354339287,3.0,2634.2,2633.8,3.81740165]
[1727354340197,3.0,2634.2,2633.8,0.02067165]
[1727354340198,3.0,2634.1,2633.8,0.02067165]
[1727354340402,4.55212,2634.4,2633.8,0.02067165]
[1727354340555,3.79581,2634.5,2634.0,3.79644]
[1727354340754,0.68213039,2634.9,2633.9,0.6635]
[1727354340755,3.79628,2634.2,2633.9,0.6635]
[1727354340959,3.79637,2634.1,2633.8,0.02067165]
[1727354341227,0.8195,2634.3,2633.8,0.02067165]
[1727354341228,3.79651,2634.0,2633.8,0.02067165]
[1727354341998,3.79665,2633.9,2633.8,0.02067165]
[1727354342162,5.345766,2633.9,2633.8,0.02067165]
[1727354342497,8.345766,2633.9,2633.8,0.02067165]
[1727354342672,8.895766,2633.9,2633.8,0.02067165]
[1727354344955,9.40591357,2633.9,2633.8,0.02067165]
[1727354345295,9.49286269,2633.9,2633.8,0.02067165]
[1727354345700,11.49286269,2633.9,2633.8,0.02067165]
[1727354345865,10.98271512,2633.9,2633.8,0.02067165]
[1727354347176,8.98271512,2633.9,2633.8,0.02067165]
[1727354347378,8.43271512,2633.9,2633.8,0.02067165]
[1727354348382,4.67339912,2633.9,2633.8,0.02067165]
[1727354349693,7.67339912,2633.9,2633.8,0.07617205]
[1727354349900,7.67339912,2633.9,2633.8,0.02067165]
[1727354350486,6.88359912,2633.9,2633.8,0.02067165]
[1727354351288,8.03176003,2633.9,2633.8,0.02067165]
[1727354352515,0.08694912,2633.9,2633.8,0.02067165]
[1727354352879,0.08694912,2633.9,2633.8,0.07617205]
[1727354353974,3.88359912,2633.9,2633.8,0.07617205]
[1727354354691,0.08694912,2633.9,2633.8,0.07617205]
[1727354354987,3.88359912,2633.9,2633.8,0.07617205]
[1727354355312,3.79599,2634.4,2634.1,0.6635]
[1727354355515,3.79572,2634.6,2634.1,0.6635]
[1727354355516,3.79586,2634.5,2634.1,0.6635]
[1727354355936,3.79593,2634.4,2634.1,0.6635]
[1727354356428,3.79614,2634.3,2634.1,0.6635]
[1727354356627,3.79593,2634.4,2634.1,0.6635]
[1727354356811,3.79593,2634.4,2633.8,3.81743165]
[1727354356812,3.79621,2634.3,2633.8,3.81743165]
[1727354357000,3.79621,2634.3,2633.9,0.6635]
[1727354357001,3.79625,2634.2,2633.9,0.6635]
[1727354357406,3.796,2634.4,2633.9,4.46004]
[1727354357700,6.79601,2634.4,2633.9,5.32603078]
[1727354358691,6.79601,2634.4,2633.9,1.52942078]
[1727354359027,3.0,2634.5,2634.1,3.79628]
[1727354359342,6.79536,2634.8,2634.3,0.6635]
[1727354359516,0.7866,2634.9,2634.3,0.6635]
[1727354359835,3.79565,2634.6,2634.3,0.6635]
[1727354359988,3.79582,2634.5,2634.3,0.6635]
[1727354362199,3.0,2634.6,2634.3,0.6635]
[1727354362388,4.58191,2634.9,2634.3,4.905524]
[1727354362726,4.58191,2634.9,2634.3,1.109484]
[1727354362727,3.79551,2634.7,2634.3,1.109484]
[1727354362936,3.79551,2634.7,2634.3,0.6635]
[1727354363137,3.79565,2634.6,2633.9,0.6635]
[1727354363306,3.0,2634.8,2633.9,0.6635]
[1727354363307,3.796,2634.4,2633.9,0.6635]
[1727354363740,3.79624,2634.2,2633.9,0.6635]
[1727354365242,3.79608,2634.3,2633.9,0.6635]
[1727354365737,3.79603,2634.4,2633.9,4.46008]
[1727354366239,3.79603,2634.4,2633.9,0.6635]
[1727354366439,3.79617,2634.3,2633.9,0.6635]
[1727354366602,3.79603,2634.4,2633.9,4.46005]
[1727354366968,3.79611,2634.3,2633.9,0.6635]
[1727354367732,3.79622,2634.2,2633.9,0.6635]
[1727354370158,3.79622,2634.2,2633.8,0.02067165]
[1727354370622,3.0,2634.3,2633.8,0.02067165]
[1727354370829,3.79601,2634.4,2633.8,0.02067165]
[1727354370830,3.79601,2634.4,2634.0,4.45993]
[1727354371029,3.0,2634.4,2634.0,4.45993]
[1727354371650,3.7958,2634.5,2634.0,5.28764317]
[1727354372048,3.79593,2634.4,2634.0,5.28764317]
[1727354372604,7.59142,2634.6,2634.1,3.79628]
[1727354372948,7.59142,2634.6,2634.2,3.7962]
[1727354372949,3.79569,2634.6,2634.2,3.7962]
[1727354373507,7.5914,2634.6,2634.2,3.7962]
[1727354374580,3.7958,2634.5,2634.1,0.90839032]
[1727354374783,3.7958,2634.5,2634.0,4.45989]
[1727354375782,3.7958,2634.5,2634.0,4.45988]
[1727354375990,3.79594,2634.4,2634.0,4.45988]
[1727354376478,3.79579,2634.5,2634.1,4.242328]
[1727354376869,3.79598,2634.4,2634.1,0.445988]
[1727354377077,7.59166,2634.5,2634.0,4.45999]
[1727354377391,3.0,2634.7,2634.0,4.45999]
[1727354377392,3.79593,2634.4,2634.0,4.45999]
[1727354377552,3.79593,2634.4,2634.0,5.28772117]
[1727354377748,3.79578,2634.5,2634.1,3.79635]
[1727354377987,3.79565,2634.6,2634.1,7.59262]
[1727354378196,3.79565,2634.6,2634.2,4.32489812]
[1727354378556,7.59138,2634.6,2634.2,0.52875812]
[1727354378757,3.79565,2634.6,2634.2,0.52875812]
[1727354379010,3.79586,2634.5,2634.0,4.45999]
[1727354379364,3.79624,2634.2,2634.0,0.6635]
[1727354380870,3.79644,2634.1,2633.8,0.68417165]
[1727354381560,3.79603,2634.4,2633.8,0.68417165]
[1727354381762,3.79618,2634.3,2633.9,4.24474917]
[1727354381994,3.79603,2634.4,2634.0,3.79649]
[1727354382211,3.7958,2634.5,2634.1,5.26395392]
[1727354383016,3.79594,2634.4,2634.1,1.46762392]
[1727354383213,3.79594,2634.4,2634.1,0.6635]
[1727354384613,7.59194,2634.4,2634.1,0.6635]
[1727354385614,3.79594,2634.4,2634.1,0.6635]
[1727354385836,7.59197,2634.4,2634.1,0.6635]
[1727354386412,3.79594,2634.4,2634.1,0.6635]
[1727354386616,3.79594,2634.4,2634.1,1.53397492]
[1727354387278,3.79593,2634.4,2634.1,1.53397492]
[1727354387814,3.79609,2634.3,2634.1,1.53397492]
[1727354388020,3.79609,2634.3,2634.1,0.6635]
[1727354390161,7.59225,2634.3,2634.1,0.6635]
[1727354390474,3.79609,2634.3,2634.1,0.6635]
[1727354390977,3.7965,2634.0,2633.8,0.02067165]
[1727354391364,3.79665,2633.9,2633.8,0.02067165]
[1727354392550,6.79665,2633.9,2633.8,0.02067165]
[1727354392960,7.56135,2633.9,2633.8,0.02067165]
[1727354393267,8.697135,2633.9,2633.8,0.02067165]
[1727354395499,9.247135,2633.9,2633.8,0.02067165]
[1727354398366,8.697135,2633.9,2633.8,0.02067165]
[1727354401402,3.79665,2633.9,2633.8,0.02067165]
[1727354403095,4.55155,2633.9,2633.8,0.02067165]
[1727354403523,3.79665,2633.9,2633.8,0.08349084]
[1727354403686,3.79665,2633.9,2633.8,0.02067165]
[1727354404010,3.79665,2633.9,2633.8,0.09236443]
[1727354404209,3.79665,2633.9,2633.8,0.02067165]
[1727354405893,3.79665,2633.9,2633.8,0.09236443]
[1727354406102,3.79665,2633.9,2633.8,0.02067165]
[1727354406326,3.79665,2633.9,2633.8,0.09236443]
[1727354406528,4.555965,2633.9,2633.8,0.09236443]
[1727354406823,4.555965,2633.9,2633.8,0.02067165]
[1727354407013,3.79665,2633.9,2633.8,0.02067165]
[1727354407209,3.79665,2633.9,2633.8,0.10431323]
[1727354409345,3.7965,2634.0,2633.8,0.76781323]
[1727354409668,3.79643,2634.1,2633.8,0.76781323]
[1727354409842,3.79643,2634.1,2633.9,0.45646932]
[1727354410051,3.79643,2634.1,2634.0,0.08310866]
[1727354410741,3.79611,2634.3,2634.0,0.08310866]
[1727354410742,3.79628,2634.2,2634.0,0.08310866]
[1727354410949,3.79599,2634.4,2634.0,0.08310866]
[1727354411157,3.79599,2634.4,2634.1,0.6635]
[1727354411306,3.79608,2634.3,2634.1,0.6635]
[1727354411506,3.79621,2634.2,2634.1,0.76295761]
[1727354411736,3.79608,2634.3,2634.1,0.09945761]
[1727354412046,3.79608,2634.3,2633.9,0.6635]
[1727354412230,3.79608,2634.3,2634.0,0.09973039]
[1727354413126,3.79622,2634.2,2633.9,1.11159616]
[1727354413518,3.79608,2634.3,2633.9,1.11159616]
[1727354414052,3.79637,2634.1,2633.9,1.11159616]
[1727354414349,3.79665,2633.9,2633.8,0.02067165]
[1727354414712,3.79665,2633.9,2633.8,0.09172756]
[1727354415028,3.79636,2634.1,2633.8,0.02067165]
[1727354415029,3.79651,2634.0,2633.8,0.02067165]
[1727354415407,3.79665,2633.9,2633.8,0.02067165]
[1727354415861,3.79647,2634.1,2633.8,0.02067165]
[1727354416068,3.79627,2634.2,2633.8,0.46878581]
[1727354416364,3.79627,2634.2,2633.8,0.02067165]
[1727354417221,3.79616,2634.3,2633.9,4.46008]
[1727354417428,3.79588,2634.5,2634.0,3.7965]
[1727354417749,3.79588,2634.5,2634.1,0.446]
[1727354417955,3.0,2634.7,2634.1,0.446]
[1727354417956,3.79565,2634.6,2634.2,0.6635]
[1727354418270,3.0,2634.5,2634.2,0.6635]
[1727354418436,3.79565,2634.6,2634.3,3.79606]
[1727354418437,3.0,2634.6,2634.3,3.79606]
[1727354418635,3.0,2634.6,2634.2,0.6635]
[1727354418951,3.0,2634.6,2634.2,4.45962]
[1727354419859,3.79558,2634.7,2634.2,0.6635]
[1727354420065,3.79573,2634.6,2634.2,1.154084]
[1727354421353,3.79558,2634.7,2634.2,4.950214]
[1727354421548,3.79558,2634.7,2634.2,1.154084]
[1727354421755,3.79566,2634.6,2634.2,4.950274]
[1727354422157,3.79558,2634.7,2634.3,4.6707124]
[1727354423025,3.79536,2634.8,2634.4,4.45942]
[1727354423365,3.0,2634.9,2634.5,3.79568]
[1727354423579,3.0,2634.9,2634.5,4.71628449]
[1727354424088,3.7946,2635.4,2634.6,0.6635]
[1727354424239,3.79456,2635.4,2635.0,0.6635]
[1727354424575,3.79435,2635.5,2635.0,0.6635]
[1727354424871,3.79435,2635.5,2635.0,1.11695821]
[1727354425234,3.79435,2635.5,2635.0,4.91195821]
[1727354425638,7.58882,2635.5,2635.0,4.91195821]
[1727354425972,3.79468,2635.3,2635.0,1.11695821]
[1727354426180,3.79468,2635.3,2635.0,0.6635]
[1727354426670,3.79451,2635.4,2635.0,0.6635]
[1727354428180,7.58911,2635.4,2635.0,0.6635]
[1727354428475,3.79451,2635.4,2635.0,0.6635]
[1727354428858,7.5891,2635.4,2635.0,0.6635]
[1727354429068,3.79451,2635.4,2635.0,0.6635]
[1727354429265,3.79451,2635.4,2635.1,0.445868]
[1727354429874,3.79466,2635.3,2635.1,0.445868]
[1727354430180,3.79466,2635.3,2635.0,0.6635]
[1727354430549,7.58942,2635.3,2635.0,0.6635]
[1727354430843,3.79466,2635.3,2635.0,0.6635]
[1727354431480,3.79449,2635.4,2635.0,0.6635]
[1727354431643,3.0,2635.5,2635.1,0.445869]
[1727354431844,6.79416,2635.7,2635.3,0.6635]
[1727354431845,3.0,2635.6,2635.3,0.6635]
[1727354432046,3.0,2635.6,2635.4,0.06919622]
[1727354432245,3.0,2635.8,2635.4,0.06919622]
[1727354432498,3.79387,2635.9,2635.3,4.5339821]
[1727354432780,3.79387,2635.9,2635.4,1.11689821]
[1727354432983,3.79358,2636.1,2635.5,0.07587804]
[1727354433169,3.79363,2636.0,2635.5,3.79426]
[1727354433371,3.79358,2636.1,2635.7,0.6635]
[1727354433546,7.58715,2636.1,2635.7,0.6635]
[1727354433755,3.79357,2636.1,2635.8,0.06882701]
[1727354434178,7.58714,2636.1,2635.8,0.06882701]
[1727354434383,3.79362,2636.0,2635.8,0.06882701]
[1727354435117,3.79357,2636.1,2635.8,0.06882701]
[1727354438014,3.79363,2636.0,2635.8,0.06882701]
[1727354438214,3.79377,2635.9,2635.8,0.06882701]
[1727354439682,3.79377,2635.9,2635.5,0.6635]
[1727354440011,3.79377,2635.9,2635.8,0.06843124]
[1727354440187,3.79377,2635.9,2635.5,4.45782]
[1727354440390,3.79362,2636.0,2635.8,0.06843124]
[1727354440592,3.79362,2636.0,2635.6,4.619354]
[1727354440788,3.79362,2636.0,2635.9,0.06833896]
[1727354441001,3.79362,2636.0,2635.6,3.79413]
[1727354441207,3.79362,2636.0,2635.9,0.06833896]
[1727354441413,3.79362,2636.0,2635.6,3.79413]
[1727354441923,3.79362,2636.0,2635.7,0.06852353]
[1727354442080,6.79358,2636.1,2635.7,0.06852353]
[1727354442495,3.79364,2636.0,2635.7,0.06852353]
[1727354443305,3.79383,2635.9,2635.7,0.06852353]
[1727354443509,3.79383,2635.9,2635.5,0.6635]
[1727354443831,3.79383,2635.9,2635.8,0.06843124]
[1727354444504,3.79383,2635.9,2635.5,0.6635]
[1727354444709,3.79383,2635.9,2635.8,0.06843124]
[1727354445026,3.79383,2635.9,2635.5,0.6635]
[1727354445231,3.79383,2635.9,2635.8,0.06843124]
[1727354445406,3.79383,2635.9,2635.5,1.488731]
[1727354445604,3.79383,2635.9,2635.8,0.06843124]
[1727354446003,3.79383,2635.9,2635.5,1.488731]
[1727354446197,3.79383,2635.9,2635.8,0.06843124]
[1727354446397,3.79383,2635.9,2635.5,1.488731]
[1727354446634,4.57803,2635.9,2635.8,0.06843124]
[1727354446840,3.79422,2635.6,2635.2,3.7947]